{"text_format":"3","workbook":"xlsx","n_sheets":1,"sheets":["岗位表"],"not_rendered":{"external_links":1,"defined_names":2},"read":"whole","date_system":"1900"}

{"sheet":"岗位表","index":0,"n_rows":71,"n_cols":9,"rows_kept":71,"merged":[[0,0,0,7],[1,0,1,8]]}
["附件1"]
["运城市大学生乡村医生专项计划公开招聘空缺岗位信息表"]
["序号","岗位","人数","年龄要求","学历要求","专业要求","其他要求","工作地点","备注"]
[1,"运城市稷山县清河镇三交村卫生室",1,"35周岁及以下","普通全日制大专及以上学历","大专：临床医学、中医学、中医骨伤、针灸推拿、民族医学\n本科：临床医学、中医学类、中西医结合类","仅限2023年应届医学专业高校毕业生（或按2023年应届毕业生同等对待的医学专业高校毕业生）报考",{"$f":"VLOOKUP(B4,[1]岗位表!B$3:H$126,7,0)","v":"运城市稷山县清河镇三交村"}]
[2,"运城市绛县南樊镇赵村卫生室",1,"35周岁及以下","普通全日制大专及以上学历","大专：临床医学、中医学、中医骨伤、针灸推拿、民族医学\n本科：临床医学、中医学类、中西医结合类","仅限2023年应届医学专业高校毕业生（或按2023年应届毕业生同等对待的医学专业高校毕业生）报考",{"$f":"VLOOKUP(B5,[1]岗位表!B$3:H$126,7,0)","v":"运城市绛县南樊镇赵村"}]
[3,"运城市绛县安峪镇东晋峪村卫生室",1,"35周岁及以下","普通全日制大专及以上学历","大专：临床医学、中医学、中医骨伤、针灸推拿、民族医学\n本科：临床医学、中医学类、中西医结合类","仅限2023年应届医学专业高校毕业生（或按2023年应届毕业生同等对待的医学专业高校毕业生）报考",{"$f":"VLOOKUP(B6,[1]岗位表!B$3:H$126,7,0)","v":"运城市绛县安峪镇东晋峪村"}]
[4,"运城市绛县安峪镇西晋峪村卫生室",1,"35周岁及以下","普通全日制大专及以上学历","大专：临床医学、中医学、中医骨伤、针灸推拿、民族医学\n本科：临床医学、中医学类、中西医结合类","仅限2023年应届医学专业高校毕业生（或按2023年应届毕业生同等对待的医学专业高校毕业生）报考",{"$f":"VLOOKUP(B7,[1]岗位表!B$3:H$126,7,0)","v":"运城市绛县安峪镇西晋峪村"}]
[5,"运城市绛县古绛镇紫阳村第四卫生室",1,"35周岁及以下","普通全日制大专及以上学历","大专：临床医学、中医学、中医骨伤、针灸推拿、民族医学\n本科：临床医学、中医学类、中西医结合类","仅限2023年应届医学专业高校毕业生（或按2023年应届毕业生同等对待的医学专业高校毕业生）报考",{"$f":"VLOOKUP(B8,[1]岗位表!B$3:H$126,7,0)","v":"运城市绛县古绛镇紫阳村"}]
[6,"运城市绛县郝庄乡北庄村卫生室",1,"35周岁及以下","普通全日制大专及以上学历","大专：临床医学、中医学、中医骨伤、针灸推拿、民族医学\n本科：临床医学、中医学类、中西医结合类","仅限2023年应届医学专业高校毕业生（或按2023年应届毕业生同等对待的医学专业高校毕业生）报考",{"$f":"VLOOKUP(B9,[1]岗位表!B$3:H$126,7,0)","v":"运城市绛县郝庄乡北庄村"}]
[7,"运城市绛县郝庄乡牛庄村卫生室",1,"35周岁及以下","普通全日制大专及以上学历","大专：临床医学、中医学、中医骨伤、针灸推拿、民族医学\n本科：临床医学、中医学类、中西医结合类","仅限2023年应届医学专业高校毕业生（或按2023年应届毕业生同等对待的医学专业高校毕业生）报考",{"$f":"VLOOKUP(B10,[1]岗位表!B$3:H$126,7,0)","v":"运城市绛县郝庄乡牛庄村"}]
[8,"运城市绛县郝庄乡小祁村卫生室",1,"35周岁及以下","普通全日制大专及以上学历","大专：临床医学、中医学、中医骨伤、针灸推拿、民族医学\n本科：临床医学、中医学类、中西医结合类","仅限2023年应届医学专业高校毕业生（或按2023年应届毕业生同等对待的医学专业高校毕业生）报考",{"$f":"VLOOKUP(B11,[1]岗位表!B$3:H$126,7,0)","v":"运城市绛县郝庄乡小祁村"}]
[9,"运城市绛县磨里镇西尧村卫生室",1,"35周岁及以下","普通全日制大专及以上学历","大专：临床医学、中医学、中医骨伤、针灸推拿、民族医学\n本科：临床医学、中医学类、中西医结合类","仅限2023年应届医学专业高校毕业生（或按2023年应届毕业生同等对待的医学专业高校毕业生）报考",{"$f":"VLOOKUP(B12,[1]岗位表!B$3:H$126,7,0)","v":"运城市绛县磨里镇西尧村"}]
[10,"运城市绛县磨里镇东岭村卫生室",1,"35周岁及以下","普通全日制大专及以上学历","大专：临床医学、中医学、中医骨伤、针灸推拿、民族医学\n本科：临床医学、中医学类、中西医结合类","仅限2023年应届医学专业高校毕业生（或按2023年应届毕业生同等对待的医学专业高校毕业生）报考",{"$f":"VLOOKUP(B13,[1]岗位表!B$3:H$126,7,0)","v":"运城市绛县磨里镇东岭村"}]
[11,"运城市绛县磨里镇炭元河村卫生室",1,"35周岁及以下","普通全日制大专及以上学历","大专：临床医学、中医学、中医骨伤、针灸推拿、民族医学\n本科：临床医学、中医学类、中西医结合类","仅限2023年应届医学专业高校毕业生（或按2023年应届毕业生同等对待的医学专业高校毕业生）报考",{"$f":"VLOOKUP(B14,[1]岗位表!B$3:H$126,7,0)","v":"运城市绛县磨里镇炭元河村"}]
[12,"运城市绛县横水镇西仇村卫生室",1,"35周岁及以下","普通全日制大专及以上学历","大专：临床医学、中医学、中医骨伤、针灸推拿、民族医学\n本科：临床医学、中医学类、中西医结合类","仅限2023年应届医学专业高校毕业生（或按2023年应届毕业生同等对待的医学专业高校毕业生）报考",{"$f":"VLOOKUP(B15,[1]岗位表!B$3:H$126,7,0)","v":"运城市绛县横水镇西仇村"}]
[13,"运城市绛县冷口乡烟庄村卫生室",1,"35周岁及以下","普通全日制大专及以上学历","大专：临床医学、中医学、中医骨伤、针灸推拿、民族医学\n本科：临床医学、中医学类、中西医结合类","仅限2023年应届医学专业高校毕业生（或按2023年应届毕业生同等对待的医学专业高校毕业生）报考",{"$f":"VLOOKUP(B16,[1]岗位表!B$3:H$126,7,0)","v":"运城市绛县冷口乡烟庄村"}]
[14,"运城市临猗县嵋阳镇卫村卫生室",1,"35周岁及以下","普通全日制大专及以上学历","大专：临床医学、中医学、中医骨伤、针灸推拿、民族医学\n本科：临床医学、中医学类、中西医结合类","仅限2023年应届医学专业高校毕业生（或按2023年应届毕业生同等对待的医学专业高校毕业生）报考",{"$f":"VLOOKUP(B17,[1]岗位表!B$3:H$126,7,0)","v":"运城市临猗县嵋阳镇卫村"}]
[15,"运城市临猗县庙上乡张庄村卫生室",1,"35周岁及以下","普通全日制大专及以上学历","大专：临床医学、中医学、中医骨伤、针灸推拿、民族医学\n本科：临床医学、中医学类、中西医结合类","仅限2023年应届医学专业高校毕业生（或按2023年应届毕业生同等对待的医学专业高校毕业生）报考",{"$f":"VLOOKUP(B18,[1]岗位表!B$3:H$126,7,0)","v":"运城市临猗县庙上乡张庄村"}]
[16,"运城市临猗县庙上乡白鹿村卫生室",1,"35周岁及以下","普通全日制大专及以上学历","大专：临床医学、中医学、中医骨伤、针灸推拿、民族医学\n本科：临床医学、中医学类、中西医结合类","仅限2023年应届医学专业高校毕业生（或按2023年应届毕业生同等对待的医学专业高校毕业生）报考",{"$f":"VLOOKUP(B19,[1]岗位表!B$3:H$126,7,0)","v":"运城市临猗县庙上乡白鹿村"}]
[17,"运城市临猗县临晋镇冯家卓村卫生室",1,"35周岁及以下","普通全日制大专及以上学历","大专：临床医学、中医学、中医骨伤、针灸推拿、民族医学\n本科：临床医学、中医学类、中西医结合类","仅限2023年应届医学专业高校毕业生（或按2023年应届毕业生同等对待的医学专业高校毕业生）报考",{"$f":"VLOOKUP(B20,[1]岗位表!B$3:H$126,7,0)","v":"运城市临猗县临晋镇冯家卓村"}]
[18,"运城市临猗县七级镇七级村卫生室",1,"35周岁及以下","普通全日制大专及以上学历","大专：临床医学、中医学、中医骨伤、针灸推拿、民族医学\n本科：临床医学、中医学类、中西医结合类","仅限2023年应届医学专业高校毕业生（或按2023年应届毕业生同等对待的医学专业高校毕业生）报考",{"$f":"VLOOKUP(B21,[1]岗位表!B$3:H$126,7,0)","v":"运城市临猗县七级镇七级村"}]
[19,"运城市临猗县七级镇解村卫生室",1,"35周岁及以下","普通全日制大专及以上学历","大专：临床医学、中医学、中医骨伤、针灸推拿、民族医学\n本科：临床医学、中医学类、中西医结合类","仅限2023年应届医学专业高校毕业生（或按2023年应届毕业生同等对待的医学专业高校毕业生）报考",{"$f":"VLOOKUP(B22,[1]岗位表!B$3:H$126,7,0)","v":"运城市临猗县七级镇解村"}]
[20,"运城市临猗县七级镇西程村卫生室",1,"35周岁及以下","普通全日制大专及以上学历","大专：临床医学、中医学、中医骨伤、针灸推拿、民族医学\n本科：临床医学、中医学类、中西医结合类","仅限2023年应届医学专业高校毕业生（或按2023年应届毕业生同等对待的医学专业高校毕业生）报考",{"$f":"VLOOKUP(B23,[1]岗位表!B$3:H$126,7,0)","v":"运城市临猗县七级镇西程村"}]
[21,"运城市临猗县东张镇新民庄村卫生室",1,"35周岁及以下","普通全日制大专及以上学历","大专：临床医学、中医学、中医骨伤、针灸推拿、民族医学\n本科：临床医学、中医学类、中西医结合类","仅限2023年应届医学专业高校毕业生（或按2023年应届毕业生同等对待的医学专业高校毕业生）报考",{"$f":"VLOOKUP(B24,[1]岗位表!B$3:H$126,7,0)","v":"运城市临猗县东张镇新民庄村"}]
[22,"运城市临猗县角杯镇周吴村卫生室",1,"35周岁及以下","普通全日制大专及以上学历","大专：临床医学、中医学、中医骨伤、针灸推拿、民族医学\n本科：临床医学、中医学类、中西医结合类","仅限2023年应届医学专业高校毕业生（或按2023年应届毕业生同等对待的医学专业高校毕业生）报考",{"$f":"VLOOKUP(B25,[1]岗位表!B$3:H$126,7,0)","v":"运城市临猗县角杯镇周吴村"}]
[23,"运城市临猗县角杯镇吴王村吴王庄卫生室",1,"35周岁及以下","普通全日制大专及以上学历","大专：临床医学、中医学、中医骨伤、针灸推拿、民族医学\n本科：临床医学、中医学类、中西医结合类","仅限2023年应届医学专业高校毕业生（或按2023年应届毕业生同等对待的医学专业高校毕业生）报考",{"$f":"VLOOKUP(B26,[1]岗位表!B$3:H$126,7,0)","v":"运城市临猗县角杯镇吴王村"}]
[24,"运城市临猗县孙吉镇蔡村卫生室",1,"35周岁及以下","普通全日制大专及以上学历","大专：临床医学、中医学、中医骨伤、针灸推拿、民族医学\n本科：临床医学、中医学类、中西医结合类","仅限2023年应届医学专业高校毕业生（或按2023年应届毕业生同等对待的医学专业高校毕业生）报考",{"$f":"VLOOKUP(B27,[1]岗位表!B$3:H$126,7,0)","v":"运城市临猗县孙吉镇蔡村"}]
[25,"运城市临猗县孙吉镇蔡高村卫生室",1,"35周岁及以下","普通全日制大专及以上学历","大专：临床医学、中医学、中医骨伤、针灸推拿、民族医学\n本科：临床医学、中医学类、中西医结合类","仅限2023年应届医学专业高校毕业生（或按2023年应届毕业生同等对待的医学专业高校毕业生）报考",{"$f":"VLOOKUP(B28,[1]岗位表!B$3:H$126,7,0)","v":"运城市临猗县孙吉镇蔡高村"}]
[26,"运城市临猗县耽子镇东屯村卫生室",1,"35周岁及以下","普通全日制大专及以上学历","大专：临床医学、中医学、中医骨伤、针灸推拿、民族医学\n本科：临床医学、中医学类、中西医结合类","仅限2023年应届医学专业高校毕业生（或按2023年应届毕业生同等对待的医学专业高校毕业生）报考",{"$f":"VLOOKUP(B29,[1]岗位表!B$3:H$126,7,0)","v":"运城市临猗县耽子镇东屯村"}]
[27,"运城市平陆县常乐镇中张村卫生室",1,"35周岁及以下","普通全日制大专及以上学历","大专：临床医学、中医学、中医骨伤、针灸推拿、民族医学\n本科：临床医学、中医学类、中西医结合类","仅限2023年应届医学专业高校毕业生（或按2023年应届毕业生同等对待的医学专业高校毕业生）报考",{"$f":"VLOOKUP(B30,[1]岗位表!B$3:H$126,7,0)","v":"运城市平陆县常乐镇中张村"}]
[28,"运城市平陆县常乐镇洪阳村卫生室",1,"35周岁及以下","普通全日制大专及以上学历","大专：临床医学、中医学、中医骨伤、针灸推拿、民族医学\n本科：临床医学、中医学类、中西医结合类","仅限2023年应届医学专业高校毕业生（或按2023年应届毕业生同等对待的医学专业高校毕业生）报考",{"$f":"VLOOKUP(B31,[1]岗位表!B$3:H$126,7,0)","v":"运城市平陆县常乐镇洪阳村"}]
[29,"运城市平陆县张村镇西沟村卫生室",1,"35周岁及以下","普通全日制大专及以上学历","大专：临床医学、中医学、中医骨伤、针灸推拿、民族医学\n本科：临床医学、中医学类、中西医结合类","仅限2023年应届医学专业高校毕业生（或按2023年应届毕业生同等对待的医学专业高校毕业生）报考",{"$f":"VLOOKUP(B32,[1]岗位表!B$3:H$126,7,0)","v":"运城市平陆县张村镇西沟村"}]
[30,"运城市平陆县张村镇沙口村第二卫生室",1,"35周岁及以下","普通全日制大专及以上学历","大专：临床医学、中医学、中医骨伤、针灸推拿、民族医学\n本科：临床医学、中医学类、中西医结合类","仅限2023年应届医学专业高校毕业生（或按2023年应届毕业生同等对待的医学专业高校毕业生）报考",{"$f":"VLOOKUP(B33,[1]岗位表!B$3:H$126,7,0)","v":"运城市平陆县张村镇沙口村"}]
[31,"运城市平陆县部官镇东太村卫生室",1,"35周岁及以下","普通全日制大专及以上学历","大专：临床医学、中医学、中医骨伤、针灸推拿、民族医学\n本科：临床医学、中医学类、中西医结合类","仅限2023年应届医学专业高校毕业生（或按2023年应届毕业生同等对待的医学专业高校毕业生）报考",{"$f":"VLOOKUP(B34,[1]岗位表!B$3:H$126,7,0)","v":"运城市平陆县部官镇东太村"}]
[32,"运城市平陆县部官镇西太村卫生室",1,"35周岁及以下","普通全日制大专及以上学历","大专：临床医学、中医学、中医骨伤、针灸推拿、民族医学\n本科：临床医学、中医学类、中西医结合类","仅限2023年应届医学专业高校毕业生（或按2023年应届毕业生同等对待的医学专业高校毕业生）报考",{"$f":"VLOOKUP(B35,[1]岗位表!B$3:H$126,7,0)","v":"运城市平陆县部官镇西太村"}]
[33,"运城市平陆县圣人涧镇古吕村卫生室",1,"35周岁及以下","普通全日制大专及以上学历","大专：临床医学、中医学、中医骨伤、针灸推拿、民族医学\n本科：临床医学、中医学类、中西医结合类","仅限2023年应届医学专业高校毕业生（或按2023年应届毕业生同等对待的医学专业高校毕业生）报考",{"$f":"VLOOKUP(B36,[1]岗位表!B$3:H$126,7,0)","v":"运城市平陆县圣人涧镇古吕村"}]
[34,"运城市平陆县张店镇张郭村卫生室",1,"35周岁及以下","普通全日制大专及以上学历","大专：临床医学、中医学、中医骨伤、针灸推拿、民族医学\n本科：临床医学、中医学类、中西医结合类","仅限2023年应届医学专业高校毕业生（或按2023年应届毕业生同等对待的医学专业高校毕业生）报考",{"$f":"VLOOKUP(B37,[1]岗位表!B$3:H$126,7,0)","v":"运城市平陆县张店镇张郭村"}]
[35,"运城市平陆县三门镇七湾村卫生室",1,"35周岁及以下","普通全日制大专及以上学历","大专：临床医学、中医学、中医骨伤、针灸推拿、民族医学\n本科：临床医学、中医学类、中西医结合类","仅限2023年应届医学专业高校毕业生（或按2023年应届毕业生同等对待的医学专业高校毕业生）报考",{"$f":"VLOOKUP(B38,[1]岗位表!B$3:H$126,7,0)","v":"运城市平陆县三门镇七湾村"}]
[36,"运城市平陆县曹川镇垣坪村卫生室",1,"35周岁及以下","普通全日制大专及以上学历","大专：临床医学、中医学、中医骨伤、针灸推拿、民族医学\n本科：临床医学、中医学类、中西医结合类","仅限2023年应届医学专业高校毕业生（或按2023年应届毕业生同等对待的医学专业高校毕业生）报考",{"$f":"VLOOKUP(B39,[1]岗位表!B$3:H$126,7,0)","v":"运城市平陆县曹川镇垣坪村"}]
[37,"运城市平陆县曹川镇下坪村卫生室",1,"35周岁及以下","普通全日制大专及以上学历","大专：临床医学、中医学、中医骨伤、针灸推拿、民族医学\n本科：临床医学、中医学类、中西医结合类","仅限2023年应届医学专业高校毕业生（或按2023年应届毕业生同等对待的医学专业高校毕业生）报考",{"$f":"VLOOKUP(B40,[1]岗位表!B$3:H$126,7,0)","v":"运城市平陆县曹川镇下坪村"}]
[38,"运城市万荣县通化镇西畅村卫生室",1,"35周岁及以下","普通全日制大专及以上学历","大专：临床医学、中医学、中医骨伤、针灸推拿、民族医学\n本科：临床医学、中医学类、中西医结合类","仅限2023年应届医学专业高校毕业生（或按2023年应届毕业生同等对待的医学专业高校毕业生）报考",{"$f":"VLOOKUP(B41,[1]岗位表!B$3:H$126,7,0)","v":"运城市万荣县通化镇西畅村"}]
[39,"运城市万荣县西村乡刘和村卫生室",1,"35周岁及以下","普通全日制大专及以上学历","大专：临床医学、中医学、中医骨伤、针灸推拿、民族医学\n本科：临床医学、中医学类、中西医结合类","仅限2023年应届医学专业高校毕业生（或按2023年应届毕业生同等对待的医学专业高校毕业生）报考",{"$f":"VLOOKUP(B42,[1]岗位表!B$3:H$126,7,0)","v":"运城市万荣县西村乡刘和村"}]
[40,"运城市万荣县王显乡杨庄村卫生室",1,"35周岁及以下","普通全日制大专及以上学历","大专：临床医学、中医学、中医骨伤、针灸推拿、民族医学\n本科：临床医学、中医学类、中西医结合类","仅限2023年应届医学专业高校毕业生（或按2023年应届毕业生同等对待的医学专业高校毕业生）报考",{"$f":"VLOOKUP(B43,[1]岗位表!B$3:H$126,7,0)","v":"运城市万荣县王显乡杨庄村"}]
[41,"运城市万荣县王显乡贤胡村卫生室",1,"35周岁及以下","普通全日制大专及以上学历","大专：临床医学、中医学、中医骨伤、针灸推拿、民族医学\n本科：临床医学、中医学类、中西医结合类","仅限2023年应届医学专业高校毕业生（或按2023年应届毕业生同等对待的医学专业高校毕业生）报考",{"$f":"VLOOKUP(B44,[1]岗位表!B$3:H$126,7,0)","v":"运城市万荣县王显乡贤胡村"}]
[42,"运城市闻喜县桐城镇柴庄村卫生室",1,"35周岁及以下","普通全日制大专及以上学历","大专：临床医学、中医学、中医骨伤、针灸推拿、民族医学\n本科：临床医学、中医学类、中西医结合类","仅限2023年应届医学专业高校毕业生（或按2023年应届毕业生同等对待的医学专业高校毕业生）报考",{"$f":"VLOOKUP(B45,[1]岗位表!B$3:H$126,7,0)","v":"运城市闻喜县桐城镇柴庄村"}]
[43,"运城市闻喜县后宫乡四方峪村卫生室",1,"35周岁及以下","普通全日制大专及以上学历","大专：临床医学、中医学、中医骨伤、针灸推拿、民族医学\n本科：临床医学、中医学类、中西医结合类","仅限2023年应届医学专业高校毕业生（或按2023年应届毕业生同等对待的医学专业高校毕业生）报考",{"$f":"VLOOKUP(B46,[1]岗位表!B$3:H$126,7,0)","v":"运城市闻喜县后宫乡四方峪村"}]
[44,"运城市闻喜县薛店镇岳原村卫生室",1,"35周岁及以下","普通全日制大专及以上学历","大专：临床医学、中医学、中医骨伤、针灸推拿、民族医学\n本科：临床医学、中医学类、中西医结合类","仅限2023年应届医学专业高校毕业生（或按2023年应届毕业生同等对待的医学专业高校毕业生）报考",{"$f":"VLOOKUP(B47,[1]岗位表!B$3:H$126,7,0)","v":"运城市闻喜县薛店镇岳原村"}]
[45,"运城市闻喜县裴社镇王宋村卫生室",1,"35周岁及以下","普通全日制大专及以上学历","大专：临床医学、中医学、中医骨伤、针灸推拿、民族医学\n本科：临床医学、中医学类、中西医结合类","仅限2023年应届医学专业高校毕业生（或按2023年应届毕业生同等对待的医学专业高校毕业生）报考",{"$f":"VLOOKUP(B48,[1]岗位表!B$3:H$126,7,0)","v":"运城市闻喜县裴社镇王宋村"}]
[46,"运城市闻喜县阳隅镇吴吕村卫生室",1,"35周岁及以下","普通全日制大专及以上学历","大专：临床医学、中医学、中医骨伤、针灸推拿、民族医学\n本科：临床医学、中医学类、中西医结合类","仅限2023年应届医学专业高校毕业生（或按2023年应届毕业生同等对待的医学专业高校毕业生）报考",{"$f":"VLOOKUP(B49,[1]岗位表!B$3:H$126,7,0)","v":"运城市闻喜县阳隅镇吴吕村"}]
[47,"运城市闻喜县礼元镇下寨村卫生室",1,"35周岁及以下","普通全日制大专及以上学历","大专：临床医学、中医学、中医骨伤、针灸推拿、民族医学\n本科：临床医学、中医学类、中西医结合类","仅限2023年应届医学专业高校毕业生（或按2023年应届毕业生同等对待的医学专业高校毕业生）报考",{"$f":"VLOOKUP(B50,[1]岗位表!B$3:H$126,7,0)","v":"运城市闻喜县礼元镇下寨村"}]
[48,"运城市闻喜县礼元镇昙泉村卫生室",1,"35周岁及以下","普通全日制大专及以上学历","大专：临床医学、中医学、中医骨伤、针灸推拿、民族医学\n本科：临床医学、中医学类、中西医结合类","仅限2023年应届医学专业高校毕业生（或按2023年应届毕业生同等对待的医学专业高校毕业生）报考",{"$f":"VLOOKUP(B51,[1]岗位表!B$3:H$126,7,0)","v":"运城市闻喜县礼元镇昙泉村"}]
[49,"运城市垣曲县新城镇清南村卫生室",1,"35周岁及以下","普通全日制大专及以上学历","大专：临床医学、中医学、中医骨伤、针灸推拿、民族医学\n本科：临床医学、中医学类、中西医结合类","仅限2023年应届医学专业高校毕业生（或按2023年应届毕业生同等对待的医学专业高校毕业生）报考",{"$f":"VLOOKUP(B52,[1]岗位表!B$3:H$126,7,0)","v":"运城市垣曲县新城镇清南村"}]
[50,"运城市垣曲县华峰乡马村卫生室",1,"35周岁及以下","普通全日制大专及以上学历","大专：临床医学、中医学、中医骨伤、针灸推拿、民族医学\n本科：临床医学、中医学类、中西医结合类","仅限2023年应届医学专业高校毕业生（或按2023年应届毕业生同等对待的医学专业高校毕业生）报考",{"$f":"VLOOKUP(B53,[1]岗位表!B$3:H$126,7,0)","v":"运城市垣曲县华峰乡马村"}]
[51,"运城市垣曲县古城镇西石村卫生室",1,"35周岁及以下","普通全日制大专及以上学历","大专：临床医学、中医学、中医骨伤、针灸推拿、民族医学\n本科：临床医学、中医学类、中西医结合类","仅限2023年应届医学专业高校毕业生（或按2023年应届毕业生同等对待的医学专业高校毕业生）报考",{"$f":"VLOOKUP(B54,[1]岗位表!B$3:H$126,7,0)","v":"运城市垣曲县古城镇西石村"}]
[52,"运城市垣曲县英言镇柏底村卫生室",1,"35周岁及以下","普通全日制大专及以上学历","大专：临床医学、中医学、中医骨伤、针灸推拿、民族医学\n本科：临床医学、中医学类、中西医结合类","仅限2023年应届医学专业高校毕业生（或按2023年应届毕业生同等对待的医学专业高校毕业生）报考",{"$f":"VLOOKUP(B55,[1]岗位表!B$3:H$126,7,0)","v":"运城市垣曲县英言镇柏底村"}]
[53,"运城市垣曲县历山镇近圣村卫生室",1,"35周岁及以下","普通全日制大专及以上学历","大专：临床医学、中医学、中医骨伤、针灸推拿、民族医学\n本科：临床医学、中医学类、中西医结合类","仅限2023年应届医学专业高校毕业生（或按2023年应届毕业生同等对待的医学专业高校毕业生）报考",{"$f":"VLOOKUP(B56,[1]岗位表!B$3:H$126,7,0)","v":"运城市垣曲县历山镇近圣村"}]
[54,"运城市垣曲县历山镇诸冯村卫生室",1,"35周岁及以下","普通全日制大专及以上学历","大专：临床医学、中医学、中医骨伤、针灸推拿、民族医学\n本科：临床医学、中医学类、中西医结合类","仅限2023年应届医学专业高校毕业生（或按2023年应届毕业生同等对待的医学专业高校毕业生）报考",{"$f":"VLOOKUP(B57,[1]岗位表!B$3:H$126,7,0)","v":"运城市垣曲县历山镇诸冯村"}]
[55,"运城市垣曲县历山镇望仙村卫生室",1,"35周岁及以下","普通全日制大专及以上学历","大专：临床医学、中医学、中医骨伤、针灸推拿、民族医学\n本科：临床医学、中医学类、中西医结合类","仅限2023年应届医学专业高校毕业生（或按2023年应届毕业生同等对待的医学专业高校毕业生）报考",{"$f":"VLOOKUP(B58,[1]岗位表!B$3:H$126,7,0)","v":"运城市垣曲县历山镇望仙村"}]
[56,"运城市垣曲县蒲掌乡北阳村卫生室",1,"35周岁及以下","普通全日制大专及以上学历","大专：临床医学、中医学、中医骨伤、针灸推拿、民族医学\n本科：临床医学、中医学类、中西医结合类","仅限2023年应届医学专业高校毕业生（或按2023年应届毕业生同等对待的医学专业高校毕业生）报考",{"$f":"VLOOKUP(B59,[1]岗位表!B$3:H$126,7,0)","v":"运城市垣曲县蒲掌乡北阳村"}]
[57,"运城市垣曲县蒲掌乡下马村卫生室",1,"35周岁及以下","普通全日制大专及以上学历","大专：临床医学、中医学、中医骨伤、针灸推拿、民族医学\n本科：临床医学、中医学类、中西医结合类","仅限2023年应届医学专业高校毕业生（或按2023年应届毕业生同等对待的医学专业高校毕业生）报考",{"$f":"VLOOKUP(B60,[1]岗位表!B$3:H$126,7,0)","v":"运城市垣曲县蒲掌乡下马村"}]
[58,"运城市垣曲县蒲掌乡西阳村卫生室",1,"35周岁及以下","普通全日制大专及以上学历","大专：临床医学、中医学、中医骨伤、针灸推拿、民族医学\n本科：临床医学、中医学类、中西医结合类","仅限2023年应届医学专业高校毕业生（或按2023年应届毕业生同等对待的医学专业高校毕业生）报考",{"$f":"VLOOKUP(B61,[1]岗位表!B$3:H$126,7,0)","v":"运城市垣曲县蒲掌乡西阳村"}]
[59,"运城市永济市虞乡镇新义村卫生室",1,"35周岁及以下","普通全日制大专及以上学历","大专：临床医学、中医学、中医骨伤、针灸推拿、民族医学\n本科：临床医学、中医学类、中西医结合类","仅限2023年应届医学专业高校毕业生（或按2023年应届毕业生同等对待的医学专业高校毕业生）报考",{"$f":"VLOOKUP(B62,[1]岗位表!B$3:H$126,7,0)","v":"运城市永济市虞乡镇新义村"}]
[60,"运城市永济市虞乡镇五老峰村卫生室",1,"35周岁及以下","普通全日制大专及以上学历","大专：临床医学、中医学、中医骨伤、针灸推拿、民族医学\n本科：临床医学、中医学类、中西医结合类","仅限2023年应届医学专业高校毕业生（或按2023年应届毕业生同等对待的医学专业高校毕业生）报考",{"$f":"VLOOKUP(B63,[1]岗位表!B$3:H$126,7,0)","v":"运城市永济市虞乡镇五老峰村"}]
[61,"运城市永济市虞乡镇王官村卫生室",1,"35周岁及以下","普通全日制大专及以上学历","大专：临床医学、中医学、中医骨伤、针灸推拿、民族医学\n本科：临床医学、中医学类、中西医结合类","仅限2023年应届医学专业高校毕业生（或按2023年应届毕业生同等对待的医学专业高校毕业生）报考",{"$f":"VLOOKUP(B64,[1]岗位表!B$3:H$126,7,0)","v":"运城市永济市虞乡镇王官村"}]
[62,"运城市永济市卿头镇白坊村卫生室",1,"35周岁及以下","普通全日制大专及以上学历","大专：临床医学、中医学、中医骨伤、针灸推拿、民族医学\n本科：临床医学、中医学类、中西医结合类","仅限2023年应届医学专业高校毕业生（或按2023年应届毕业生同等对待的医学专业高校毕业生）报考",{"$f":"VLOOKUP(B65,[1]岗位表!B$3:H$126,7,0)","v":"运城市永济市卿头镇白坊村"}]
[63,"运城市永济市卿头镇曾家营村卫生室",1,"35周岁及以下","普通全日制大专及以上学历","大专：临床医学、中医学、中医骨伤、针灸推拿、民族医学\n本科：临床医学、中医学类、中西医结合类","仅限2023年应届医学专业高校毕业生（或按2023年应届毕业生同等对待的医学专业高校毕业生）报考",{"$f":"VLOOKUP(B66,[1]岗位表!B$3:H$126,7,0)","v":"运城市永济市卿头镇曾家营村"}]
[64,"运城市永济市开张镇常旗营村卫生室",1,"35周岁及以下","普通全日制大专及以上学历","大专：临床医学、中医学、中医骨伤、针灸推拿、民族医学\n本科：临床医学、中医学类、中西医结合类","仅限2023年应届医学专业高校毕业生（或按2023年应届毕业生同等对待的医学专业高校毕业生）报考",{"$f":"VLOOKUP(B67,[1]岗位表!B$3:H$126,7,0)","v":"运城市永济市开张镇常旗营村"}]
[65,"运城市永济市开张镇古城村卫生室",1,"35周岁及以下","普通全日制大专及以上学历","大专：临床医学、中医学、中医骨伤、针灸推拿、民族医学\n本科：临床医学、中医学类、中西医结合类","仅限2023年应届医学专业高校毕业生（或按2023年应届毕业生同等对待的医学专业高校毕业生）报考",{"$f":"VLOOKUP(B68,[1]岗位表!B$3:H$126,7,0)","v":"运城市永济市开张镇古城村"}]
[66,"运城市永济市开张镇三义村卫生室",1,"35周岁及以下","普通全日制大专及以上学历","大专：临床医学、中医学、中医骨伤、针灸推拿、民族医学\n本科：临床医学、中医学类、中西医结合类","仅限2023年应届医学专业高校毕业生（或按2023年应届毕业生同等对待的医学专业高校毕业生）报考",{"$f":"VLOOKUP(B69,[1]岗位表!B$3:H$126,7,0)","v":"运城市永济市开张镇三义村"}]
[67,"运城市永济市栲栳镇西下村卫生室",1,"35周岁及以下","普通全日制大专及以上学历","大专：临床医学、中医学、中医骨伤、针灸推拿、民族医学\n本科：临床医学、中医学类、中西医结合类","仅限2023年应届医学专业高校毕业生（或按2023年应届毕业生同等对待的医学专业高校毕业生）报考",{"$f":"VLOOKUP(B70,[1]岗位表!B$3:H$126,7,0)","v":"运城市永济市栲栳镇西下村"}]
[68,"运城市永济市蒲州镇鲁家村卫生室",1,"35周岁及以下","普通全日制大专及以上学历","大专：临床医学、中医学、中医骨伤、针灸推拿、民族医学\n本科：临床医学、中医学类、中西医结合类","仅限2023年应届医学专业高校毕业生（或按2023年应届毕业生同等对待的医学专业高校毕业生）报考",{"$f":"VLOOKUP(B71,[1]岗位表!B$3:H$126,7,0)","v":"运城市永济市蒲州镇鲁家村"}]